[Event "FIDE Zonal 2.5 Open 2019"]
[Site "Montevideo"]
[Date "2019.04.15"]
[Round "4.19"]
[White "Pinero, Ismael"]
[Black "Sosa Macho, Juan Manuel"]
[Result "0-1"]
[ECO "B33"]
[WhiteElo "1872"]
[BlackElo "2076"]
[Annotator "NA RC"]
[PlyCount "79"]
[EventDate "2019.04.13"]
[EventType "swiss"]
[EventCountry "URU"]
[SourceTitle "playchess.com"]
[Source "ChessBase"]
[SourceQuality "1"]
[TimeControl "40/5400+30:1800+30"]

1. e4 {[%emt 0:00:00]} c5 {[%emt 0:00:00]} 2. Nf3 {[%emt 0:00:00]} Nc6 {[%emt 0:00:00]} 3. d4 {[%emt 0:00:00]} cxd4 {[%emt 0:00:03]} 4. Nxd4 {[%emt 0:00:03]} Nf6 {[%emt 0:00:08]} 5. Nc3 {[%emt 0:00:20]} e5 {[%emt 0:00:07]} 6. Ndb5 {[%emt 0:00:03]} d6 {[%emt 0:00:09]} 7. Bg5 {[%emt 0:00:08]} a6 {[%emt 0:00:10]} 8. Na3 {[%emt 0:00:03]} b5 {[%emt 0:00:08]} 9. Bxf6 {[%emt 0:00:09]} gxf6 {[%emt 0:00:09]} 10. Nd5 {[%emt 0:00:08]} Bg7 {[%emt 0:00:08]} 11. c3 {[%emt 0:00:05]} f5 {[%emt 0:00:53]} 12. exf5 {[%emt 0:00:05]} Bxf5 {[%emt 0:00:08]} 13. Nc2 {[%emt 0:00:11]} O-O 14. Nce3 Be6 {[%emt 0:01:49]} 15. Bd3 {[%emt 0:00:43]} f5 {[%emt 0:00:38]} 16. Bc2 {[%emt 0:00:13]} Ra7 {[%emt 0:01:31]} 17. Qh5 {[%emt 0:03:40] B33: Sicilian: Pelikan and Sveshnikov Variations} Qd7 {[%emt 0:04:54] [#]} (17... Raf7 18. g4 Bxd5 19. Nxd5 e4 20. Nf4 Be5 21. Ne6 Qf6 22. Qg5+ Qxg5 23. Nxg5 Re7 24. gxf5 {½-½ (66) Conti,V (2532)-Lanc,A (2559) ICCF corr 1999}) 18. g4 $1 {[%emt 0:00:44]} Bxd5 {[%emt 0:10:32]} 19. Nxd5 {[%emt 0:02:24]} e4 {[%emt 0:00:05]} 20. Bb3 {[%emt 0:09:37]} Kh8 {[%emt 0:00:08]} 21. gxf5 $146 {[%emt 0:01:46]} ({Predecessor:} 21. Nf4 Ne5 22. g5 Nd3+ 23. Nxd3 exd3 24. O-O-O b4 {1-0 (43) Jain,A (1728)-Hylands,L (1888) London 2006}) 21... Rxf5 {[%emt 0:00:51]} 22. Qh3 {[%emt 0:00:42]} Ne5 {[%emt 0:02:33]} 23. f4 $2 {[%emt 0:04:55]} (23. Nb6 $15 Nd3+ 24. Qxd3 exd3 25. Nxd7 Rxd7 26. O-O-O Rxf2 27. Rxd3) 23... Nd3+ {[%emt 0:01:24]} 24. Ke2 {[%emt 0:00:22]} Rxd5 {[%emt 0:00:33]} 25. Qxd7 {[%emt 0:01:04]} Rxd7 {[%emt 0:00:15]} 26. Bxd5 {[%emt 0:00:04]} Nxf4+ {[%emt 0:00:07]} 27. Ke3 {[%emt 0:00:09]} Nxd5+ {[%emt 0:00:08]} 28. Kxe4 {[%emt 0:00:04]} Nb6 {[%emt 0:00:23]} 29. Kf5 {[%emt 0:01:10]} Re7 {[%emt 0:01:39]} 30. Rae1 {[%emt 0:00:12] [#]} Be5 $1 {[%emt 0:00:13]} 31. Re2 {[%emt 0:00:30]} a5 {[%emt 0:01:41]} 32. h4 $1 $11 {[%emt 0:00:23]} Nd5 {[%emt 0:00:36]} 33. Re4 {[%emt 0:06:24]} (33. Ke4 $142 Nf4 34. Rf2) 33... Nb6 $2 {[%emt 0:01:25]} ({Better is} 33... Kg7 $19 34. Rg1+ Kf8) 34. b3 $2 {[%emt 0:02:08]} Kg7 {[%emt 0:01:16]} 35. Rg1+ {[%emt 0:00:19]} Kf7 {[%emt 0:00:09]} 36. c4 {[%emt 0:00:12]} bxc4 {[%emt 0:00:57]} 37. bxc4 {[%emt 0:00:01]} Rc7 {[%emt 0:00:29]} 38. h5 {[%emt 0:02:06]} Nxc4 {[%emt 0:01:29]} 39. h6 {[%emt 0:01:23]} Rc5 {[%emt 0:00:21]} 40. Rf1 $19 {[%emt 0:00:33]} (40. Rb1 $142 Bg7+ 41. Kg4 Ne5+ 42. Kg5 Nd3+ 43. Kh4 Bf6+ 44. Kg3) 0-1

[Event "FIDE Zonal 2.5 Open 2019"]
[Site "Montevideo"]
[Date "2019.04.15"]
[Round "4.20"]
[White "Pichuaga, Juan Pablo"]
[Black "Zaruski, Julio"]
[Result "1-0"]
[ECO "D00"]
[WhiteElo "2021"]
[BlackElo "1842"]
[Annotator "NA RC"]
[PlyCount "87"]
[EventDate "2019.04.13"]
[EventType "swiss"]
[EventCountry "URU"]
[SourceTitle "playchess.com"]
[Source "ChessBase"]
[SourceQuality "1"]
[TimeControl "40/5400+30:1800+30"]

{[%evp 17,87,31,32767,32767,86,28,77,70,90,60,67,32,150,105,135,127,132,150,342,302,291,302,337,32767,358,373,449,411,32767,344,334,333,333,334,32767,32767,32767,421,495,505,32767,32767,32767,454,32767,32767,32767,437,435,418,496,432,453,471,32767,543,550,565,32767,32767,32767,32767,661,659,32767,32767,32767,32767,656,943,674,785]} 1. d4 {[%emt 0:00:00]} d5 {[%emt 0:04:58]} 2. Bf4 {[%emt 0:00:00]} e6 {[%emt 0:01:13]} 3. Nd2 {[%emt 0:00:04]} c5 {[%emt 0:00:48]} 4. e3 {[%emt 0:09:55]} Nc6 {[%emt 0:00:18]} 5. c3 {[%emt 0:00:19]} Nf6 {[%emt 0:01:27]} 6. Ngf3 {[%emt 0:00:07]} Bd6 {[%emt 0:08:53]} 7. Ne5 {[%emt 0:06:34]} O-O {[%emt 0:00:22]} 8. Bd3 {[%emt 0:01:20]} cxd4 {[%emt 0:03:15]} 9. exd4 {[%emt 0:08:44]} Ne7 {[%emt 0:00:30]} 10. O-O {[%emt 0:02:38]} Nf5 $146 {[%emt 0:05:40] D02: 1 d4 d5 2 Nf3 sidelines, including 2...Nf6 3 g3 and 2...Nf6 3 Bf4} ({Predecessor:} 10... Qc7 11. Re1 Ng6 12. Bg3 Nd7 13. Ndf3 Bxe5 14. dxe5 Nc5 15. Bc2 b6 16. h4 Rd8 17. h5 Nf8 18. Bh4 {1-0 (29) Sipic,H (2192)-Lovakovic,F (1894) Croatia 2015}) 11. h3 {[%emt 0:04:53]} Be7 {[%emt 0:00:08]} 12. Qe2 {[%emt 0:05:55]} Nd6 {[%emt 0:00:14]} 13. Rae1 {[%emt 0:11:23]} Bd7 {[%emt 0:09:30]} 14. g4 {[%emt 0:04:10]} g6 {[%emt 0:01:48]} ({Black should try} 14... Be8 $14) 15. Qf3 {[%emt 0:03:33]} Bb5 {[%emt 0:04:51] [#]} 16. Bxb5 $1 {[%emt 0:01:53]} Nxb5 {[%emt 0:03:09]} 17. Bh6 {[%emt 0:00:20]} Ne4 $2 {[%emt 0:06:48]} (17... Qa5 $16 {keeps fighting.} 18. Bxf8 Rxf8) 18. Nxe4 {[%emt 0:01:09]} dxe4 {[%emt 0:00:08]} 19. Rxe4 {[%emt 0:00:46]} Nd6 {[%emt 0:00:12]} 20. Bxf8 {[%emt 0:00:50]} Qxf8 {[%emt 0:02:00]} 21. Re2 {[%emt 0:00:35]} Qh6 {[%emt 0:04:00]} 22. Kg2 {[%emt 0:03:44]} Rf8 {[%emt 0:03:04]} 23. Nd7 {[%emt 0:01:23]} Rd8 {[%emt 0:01:43]} 24. Nf6+ {[%emt 0:00:26]} Kg7 {[%emt 0:00:19]} 25. Ne4 {[%emt 0:00:09]} Ne8 {[%emt 0:02:15]} 26. Qe3 {[%emt 0:04:36]} g5 {[%emt 0:00:25]} 27. Ng3 {[%emt 0:00:29]} Bd6 {[%emt 0:00:58]} 28. Nh5+ {[%emt 0:01:19]} Kh8 {[%emt 0:00:37]} 29. h4 {[%emt 0:03:57]} Bf4 {[%emt 0:02:07]} 30. Nxf4 {[%emt 0:02:52]} gxf4 {[%emt 0:00:07]} 31. Qe5+ {[%emt 0:00:12]} Nf6 {[%emt 0:02:02]} 32. Qg5 {[%emt 0:07:57]} (32. g5 $142 Rg8 33. Kh3) 32... Qxg5 {[%emt 0:00:07]} 33. hxg5 {[%emt 0:00:07]} Nd5 {[%emt 0:00:19]} 34. Kf3 {[%emt 0:00:33]} b5 {[%emt 0:00:21] [#]} 35. a4 $1 {[%emt 0:00:47]} a6 {[%emt 0:01:33]} 36. axb5 {[%emt 0:00:14]} axb5 {[%emt 0:00:09]} 37. Ra1 {[%emt 0:00:11]} Rd7 {[%emt 0:00:30]} 38. Ra8+ {[%emt 0:00:09]} Kg7 {[%emt 0:00:08]} 39. Rb8 {[%emt 0:00:13]} h6 {[%emt 0:01:51]} 40. gxh6+ {[%emt 0:00:10]} Kxh6 {[%emt 0:00:10]} 41. Rxb5 {[%emt 0:30:33]} Rc7 {[%emt 0:30:57]} 42. Re5 {[%emt 0:00:46]} Kg6 {[%emt 0:01:24]} 43. Rexd5 {[%emt 0:00:42]} exd5 $18 {[%emt 0:00:09]} 44. Rxd5 {[%emt 0:00:07]} 1-0

[Event "FIDE Zonal 2.5 Open 2019"]
[Site "Montevideo"]
[Date "2019.04.15"]
[Round "4.21"]
[White "Gaye, Gustavo"]
[Black "Campora, Edgardo"]
[Result "1-0"]
[ECO "A00"]
[WhiteElo "2000"]
[BlackElo "1705"]
[Annotator "NA RC"]
[PlyCount "45"]
[EventDate "2019.04.13"]
[EventType "swiss"]
[EventCountry "URU"]
[SourceTitle "playchess.com"]
[Source "ChessBase"]
[SourceQuality "1"]
[TimeControl "40/5400+30:1800+30"]

{[%evp 19,45,21,32767,4,-6,0,1,32767,-9,32767,58,51,69,83,92,87,119,101,84,32767,140,32767,32767,402,416,437,416,437]} 1. g3 {[%emt 0:00:00]} Nf6 {[%emt 0:03:17]} 2. Bg2 {[%emt 0:00:00]} g6 {[%emt 0:00:05]} 3. e4 {[%emt 0:00:00]} d6 {[%emt 0:00:05]} 4. Nc3 {[%emt 0:00:29]} Bg7 {[%emt 0:00:32]} 5. Nge2 {[%emt 0:01:58]} c5 {[%emt 0:03:56]} 6. d3 {[%emt 0:00:14]} Nc6 {[%emt 0:03:17]} 7. h3 {[%emt 0:01:01]} Bd7 {[%emt 0:05:00]} 8. Be3 {[%emt 0:01:18]} O-O {[%emt 0:04:51]} 9. Qd2 {[%emt 0:03:33]} Rb8 {[%emt 0:06:26]} 10. O-O {[%emt 0:13:33]} b5 {[%emt 0:04:46]} 11. f4 {[%emt 0:04:10]} b4 {[%emt 0:09:39] B26: Closed Sicilian: 3 g3, lines with early Be3} 12. Nd1 $1 {[%emt 0:02:52]} e6 {[%emt 0:02:35]} (12... a5 13. g4 a4 14. a3 Qa5 15. axb4 Qxb4 {0-1 (39) Ghaem Maghami,E (2579)-Gao,R (2427) Ho Chi Minh City 2012}) 13. Nf2 $146 {[%emt 0:02:39]} ({Predecessor:} 13. g4 Ne8 14. f5 Nd4 15. Ng3 Be5 {½-½ (24) Vo,H (1996)-Tran,T (2001) Ho Chi Minh 2017}) 13... Ne8 {[%emt 0:06:04]} 14. e5 {[%emt 0:10:36]} Qe7 {[%emt 0:01:31]} ({Better is} 14... f5 $11) 15. Ne4 {[%emt 0:01:06]} f5 {[%emt 0:04:00]} 16. Nxd6 {[%emt 0:12:58]} Nxd6 {[%emt 0:00:58]} 17. Bxc5 {[%emt 0:06:57] Pin} Nxe5 {[%emt 0:05:15]} 18. fxe5 {[%emt 0:02:22]} Bxe5 {[%emt 0:00:04]} 19. d4 {[%emt 0:02:11]} Bf6 {[%emt 0:03:47]} 20. Rad1 {[%emt 0:03:14]} a5 {[%emt 0:16:19]} 21. Qf4 {[%emt 0:05:32]} e5 {[%emt 0:02:30]} 22. dxe5 {[%emt 0:01:19]} Bxe5 {[%emt 0:00:07]} 23. Bxd6 $18 {[%emt 0:00:24]} 1-0

[Event "FIDE Zonal 2.5 Open 2019"]
[Site "Montevideo"]
[Date "2019.04.15"]
[Round "4.22"]
[White "Dotta, Gian Franco"]
[Black "Prieto Perez, Rodrigo"]
[Result "1-0"]
[ECO "C45"]
[WhiteElo "1959"]
[BlackElo "2037"]
[Annotator "NA RC"]
[PlyCount "37"]
[EventDate "2019.04.13"]
[EventType "swiss"]
[EventCountry "URU"]
[SourceTitle "playchess.com"]
[Source "ChessBase"]
[SourceQuality "1"]
[TimeControl "40/5400+30:1800+30"]

1. e4 {[%emt 0:00:00]} e5 {[%emt 0:00:00]} 2. Nf3 {[%emt 0:00:00]} Nc6 {[%emt 0:00:00]} 3. d4 {[%emt 0:00:00]} exd4 {[%emt 0:00:23]} 4. Nxd4 {[%emt 0:00:00]} Bc5 {[%emt 0:00:00]} 5. Be3 {[%emt 0:00:02]} Qf6 {[%emt 0:00:17]} 6. Nb5 {[%emt 0:00:53]} Bxe3 {[%emt 0:04:07]} 7. fxe3 {[%emt 0:00:09]} Qe5 {[%emt 0:00:27] C45: Scotch Game} (7... Qh4+ 8. g3 Qxe4 9. Nxc7+ Kd8 10. Nxa8 Nf6 11. Qd6 Qxh1 12. Nd2 Qd5 13. Qc7+ Ke7 14. O-O-O Qc5 15. Qf4 d6 {1-0 (61) Ismagambetov,A (2477)-Jumabayev,R (2522) Kostanay 2013}) 8. N1c3 {[%emt 0:00:17]} a6 {[%emt 0:02:02]} 9. Nd4 {[%emt 0:01:34]} Nge7 {[%emt 0:01:06]} 10. Be2 $146 {[%emt 0:07:06]} ({Predecessor:} 10. Bc4 O-O 11. O-O b5 12. Bb3 Na5 13. Nf5 Nxb3 14. axb3 Nc6 15. Qg4 {0-1 (33) Berkes,A (1826)-Krzesinski,P (1980) Frankfurt 2013}) 10... O-O {[%emt 0:04:59]} 11. Qd2 {[%emt 0:02:05]} d6 {[%emt 0:02:40]} 12. O-O {[%emt 0:04:58]} f5 {[%emt 0:09:13]} 13. exf5 {[%emt 0:01:44]} Bxf5 {[%emt 0:00:28]} 14. Rf4 {[%emt 0:02:48]} Bg6 {[%emt 0:12:57]} 15. Raf1 {[%emt 0:06:56]} b5 {[%emt 0:04:28]} (15... Rxf4 $11 16. Rxf4 d5) 16. Bf3 {[%emt 0:13:04]} Qc5 $2 {[%emt 0:15:18] [#]} (16... Rxf4 $16 17. exf4 Qc5) 17. Nxc6 $1 {[%emt 0:00:45]} Nxc6 {[%emt 0:00:28]} 18. Qd5+ $18 {[%emt 0:00:06]} (18. Bd5+ $142 Rf7 19. Rxf7 Bxf7 20. Rxf7) 18... Bf7 {[%emt 0:00:49]} 19. Qxc5 {[%emt 0:00:00]} 1-0

[Event "FIDE Zonal 2.5 Open 2019"]
[Site "Montevideo"]
[Date "2019.04.15"]
[Round "4.23"]
[White "Pena Canapa, Alfredo"]
[Black "Reolon, Victor"]
[Result "1-0"]
[ECO "A01"]
[WhiteElo "1811"]
[BlackElo "1659"]
[Annotator "NA RC"]
[PlyCount "92"]
[EventDate "2019.04.13"]
[EventType "swiss"]
[EventCountry "URU"]
[SourceTitle "playchess.com"]
[Source "ChessBase"]
[SourceQuality "1"]
[TimeControl "40/5400+30:1800+30"]

{[%evp 11,92,43,236,32767,32767,32767,32767,32767,32767,32767,270,217,267,32767,257,166,165,32767,32767,32767,197,156,162,109,203,210,400,438,520,32767,520,208,196,204,184,160,152,159,147,139,167,158,195,209,251,32767,32767,32767,32767,32767,32767,32767,687,32767,32767,32767,32767,32767,32767,32767,32767,32767,32767,32767,32767,630,758,829,1086,529,870,718,32767,32767,32767,32767,32767,311,1102,2659,3595,29962,29986]} 1. b3 {[%emt 0:00:00]} e5 {[%emt 0:01:30]} 2. Bb2 {[%emt 0:00:00]} Nc6 {[%emt 0:00:22]} 3. e3 {[%emt 0:00:09]} d5 {[%emt 0:01:08]} 4. Bb5 {[%emt 0:00:27]} Bd6 {[%emt 0:01:48]} 5. f4 {[%emt 0:09:14]} Qe7 {[%emt 0:24:34]} 6. Nf3 {[%emt 0:56:00]} d4 $2 {[%emt 0:32:42] A01: Nimzowitsch-Larsen Opening} ({Black should try} 6... f6 $14 7. fxe5 fxe5 8. Bxc6+ bxc6 9. Nxe5 Nf6 10. Nxc6 Qf7 11. O-O O-O 12. Bxf6 gxf6 13. Nc3 Kh8 14. Qf3 {1-0 (24) Nakamura,H (2777)-Hou,Y (2658) chess.com INT 2018}) 7. Bxc6+ {[%emt 0:09:00]} bxc6 {[%emt 0:00:11]} 8. fxe5 {[%emt 0:01:06]} Bxe5 {[%emt 0:12:34]} 9. Nxe5 {[%emt 0:00:36]} Qxe5 {[%emt 0:01:12]} 10. O-O {[%emt 0:01:29]} Qg5 $146 {[%emt 0:06:21]} (10... Ne7 {was necessary.} 11. Bxd4 Qg5) ({Predecessor:} 10... Be6 11. Bxd4 Qg5 12. c4 Ne7 13. Qf3 O-O 14. Qf4 Qxf4 15. Rxf4 {1-0 (56) Gubela,H (1788)-Erofeev,A (1813) Oberhof 2013}) 11. Bxd4 {[%emt 0:00:52]} Nh6 {[%emt 0:03:18]} 12. Qf3 {[%emt 0:03:20]} O-O {[%emt 0:00:52]} 13. Qf4 {[%emt 0:00:31]} Qxf4 {[%emt 0:01:16]} 14. Rxf4 {[%emt 0:00:08]} Nf5 {[%emt 0:03:17]} 15. Bc3 {[%emt 0:01:22]} Rd8 {[%emt 0:00:27]} 16. Na3 {[%emt 0:01:18]} Ne7 {[%emt 0:00:27]} 17. e4 {[%emt 0:02:06]} f5 {[%emt 0:00:36]} (17... a5 $16 18. Nc4 a4) 18. exf5 {[%emt 0:05:48]} Bxf5 $2 {[%emt 0:00:12]} (18... Nd5 19. Rf3 Nxc3) 19. Re1 {[%emt 0:01:25]} g5 {[%emt 0:00:51]} 20. Rf2 {[%emt 0:01:26]} Re8 {[%emt 0:03:02]} 21. d3 {[%emt 0:01:54]} (21. Bf6 $142) 21... Bg6 {[%emt 0:00:29]} 22. Rfe2 {[%emt 0:01:24]} Nd5 {[%emt 0:00:09]} 23. Rxe8+ {[%emt 0:00:28]} Rxe8 {[%emt 0:00:01]} 24. Rxe8+ {[%emt 0:00:05]} Bxe8 {[%emt 0:00:17]} 25. Bd2 {[%emt 0:00:16]} h6 {[%emt 0:00:20]} 26. Nc4 {[%emt 0:00:19]} Bh5 {[%emt 0:00:10]} 27. Ne5 {[%emt 0:00:42]} Bd1 {[%emt 0:03:05]} 28. c4 {[%emt 0:00:48]} Nf4 {[%emt 0:00:31]} 29. Bxf4 {[%emt 0:00:32]} gxf4 {[%emt 0:00:01]} 30. Nxc6 {[%emt 0:00:32]} a6 {[%emt 0:00:19]} 31. Kf2 {[%emt 0:00:20]} Bc2 {[%emt 0:00:23]} 32. d4 {[%emt 0:00:48]} Bb1 {[%emt 0:00:14]} 33. a3 {[%emt 0:00:59]} Be4 {[%emt 0:00:46]} 34. d5 {[%emt 0:00:24]} Kf8 {[%emt 0:00:35]} 35. Nd4 {[%emt 0:00:22]} Ke7 {[%emt 0:00:31]} 36. g3 {[%emt 0:00:56]} fxg3+ {[%emt 0:00:08]} 37. hxg3 {[%emt 0:00:08]} Kd6 {[%emt 0:00:17]} 38. Ke3 {[%emt 0:00:12]} Bg6 {[%emt 0:00:29]} 39. b4 {[%emt 0:00:22]} Bh7 {[%emt 0:02:20]} 40. Nf3 {[%emt 0:01:18]} Bg6 {[%emt 0:00:04]} 41. Kd4 {[%emt 0:30:24]} Be8 {[%emt 0:31:33]} 42. Nh4 {[%emt 0:00:53]} Bd7 {[%emt 0:00:28]} 43. Ng6 {[%emt 0:00:36]} Bf5 {[%emt 0:00:34]} 44. c5+ $2 {[%emt 0:00:00]} (44. Nf4 c6 45. dxc6 Kxc6 46. a4) 44... Kd7 {[%emt 0:00:00]} 45. Nf4 {[%emt 0:00:00]} Ke7 {[%emt 0:00:00]} 46. Ke5 {[%emt 0:00:00]} Kf7 {[%emt 0:00:00]} 1-0

[Event "FIDE Zonal 2.5 Open 2019"]
[Site "Montevideo"]
[Date "2019.04.15"]
[Round "4.24"]
[White "Ramirez Dominguez, Agustin"]
[Black "Manteiga, Franco"]
[Result "1/2-1/2"]
[ECO "B30"]
[WhiteElo "1907"]
[BlackElo "1684"]
[Annotator "NA RC"]
[PlyCount "47"]
[EventDate "2019.04.13"]
[EventType "swiss"]
[EventCountry "URU"]
[SourceTitle "playchess.com"]
[Source "ChessBase"]
[SourceQuality "1"]
[TimeControl "40/5400+30:1800+30"]

{[%evp 10,47,25,32767,32767,32767,32767,17,27,32767,-13,-18,0,-11,-16,32767,32767,-12,-5,32767,-18,32767,-9,-23,32767,32767,32767,-23,0,0,0,0,32767,32767,32767,0,26,0,38,0]} 1. e4 {[%emt 0:03:06]} c5 {[%emt 0:00:00]} 2. Nf3 {[%emt 0:00:33]} Nc6 {[%emt 0:00:00]} 3. Nc3 {[%emt 0:02:34]} e5 {[%emt 0:18:21]} 4. Bc4 {[%emt 0:02:42]} d6 {[%emt 0:01:04]} 5. d3 {[%emt 0:01:04]} Be7 {[%emt 0:02:14]} 6. O-O {[%emt 0:01:43]} Nf6 {[%emt 0:01:12]} 7. Bg5 {[%emt 0:01:02] B30: Sicilian: 2...Nc6 3 Bb5, lines without ...g6} (7. h3 O-O 8. Ne2 a6 9. a3 b5 10. Ba2 Be6 11. Bxe6 fxe6 12. Ng3 d5 13. Re1 d4 14. c3 Kh8 {0-1 (89) Aronian,L (2765)-Carlsen,M (2835) St Petersburg 2018}) 7... Bg4 {[%emt 0:06:33]} 8. Bxf6 {[%emt 0:07:55]} Bxf6 {[%emt 0:13:12]} 9. Nb1 $146 {[%emt 0:14:51]} ({Predecessor:} 9. h3 Be6 10. Nd5 O-O 11. Re1 Rb8 12. a4 Nd4 13. Nxd4 cxd4 14. c3 dxc3 15. bxc3 {½-½ (35) Savoca,A (2405)-Turati,P (2454) ICCF email 2012}) 9... Nd4 {[%emt 0:17:29]} 10. Nbd2 $1 {[%emt 0:14:10]} O-O {[%emt 0:05:26]} 11. c3 {[%emt 0:05:42]} Ne6 {[%emt 0:01:17]} 12. Bxe6 {[%emt 0:13:18]} fxe6 {[%emt 0:02:31]} 13. Qb3 {[%emt 0:00:33]} Qe7 {[%emt 0:02:29]} 14. Rac1 {[%emt 0:03:16]} Bh5 {[%emt 0:04:18]} 15. a4 {[%emt 0:05:55]} Bf7 {[%emt 0:04:18]} 16. Rfd1 {[%emt 0:05:21]} Rac8 {[%emt 0:05:49]} 17. Qa3 {[%emt 0:04:08]} Bh5 {[%emt 0:03:27]} 18. Qb3 {[%emt 0:01:25]} Bg5 {[%emt 0:03:24]} (18... g5 $17 19. h3 g4 20. hxg4 Bxg4) 19. Nxg5 {[%emt 0:02:16]} Bxd1 {[%emt 0:00:52]} 20. Rxd1 {[%emt 0:00:00]} Qxg5 {[%emt 0:00:57]} 21. Qxe6+ {[%emt 0:00:17]} Kh8 {[%emt 0:00:26]} 22. Qxd6 {[%emt 0:02:58]} Rfd8 {[%emt 0:02:20]} 23. Nf3 {[%emt 0:01:49]} Qxg2+ $14 24. Kxg2 1/2-1/2

[Event "FIDE Zonal 2.5 Open 2019"]
[Site "Montevideo"]
[Date "2019.04.15"]
[Round "4.25"]
[White "Palacio, Enzo"]
[Black "Fein, Jorge"]
[Result "1/2-1/2"]
[ECO "C53"]
[WhiteElo "1745"]
[BlackElo "1648"]
[Annotator "NA RC"]
[PlyCount "56"]
[EventDate "2019.04.13"]
[EventType "swiss"]
[EventCountry "URU"]
[SourceTitle "playchess.com"]
[Source "ChessBase"]
[SourceQuality "1"]
[TimeControl "40/5400+30:1800+30"]

1. e4 {[%emt 0:00:00]} e5 {[%emt 0:00:00]} 2. Nf3 {[%emt 0:00:00]} Nc6 {[%emt 0:00:00]} 3. Bc4 {[%emt 0:00:00]} Bc5 {[%emt 0:02:45]} 4. c3 {[%emt 0:00:00]} d6 {[%emt 0:00:23]} 5. d3 {[%emt 0:01:47]} h6 {[%emt 0:02:20]} 6. Bb3 {[%emt 0:00:19]} Nf6 {[%emt 0:01:28]} 7. Nbd2 {[%emt 0:00:30]} O-O {[%emt 0:00:54]} 8. O-O {[%emt 0:00:12]} Ne7 {[%emt 0:04:35]} 9. Re1 {[%emt 0:00:18]} c6 {[%emt 0:02:51]} 10. Nf1 {[%emt 0:00:17]} Bg4 {[%emt 0:03:21]} 11. h3 {[%emt 0:00:05]} Be6 {[%emt 0:01:28]} 12. Bc2 {[%emt 0:00:33]} Ng6 {[%emt 0:02:30]} 13. Ng3 {[%emt 0:00:09]} Qd7 {[%emt 0:02:30]} 14. d4 {[%emt 0:03:23]} exd4 {[%emt 0:06:34]} 15. cxd4 {[%emt 0:00:02]} Bb6 {[%emt 0:01:04]} 16. Be3 {[%emt 0:02:06]} Qc7 {[%emt 0:06:48]} 17. Rc1 {[%emt 0:00:32]} d5 {[%emt 0:07:14]} 18. e5 {[%emt 0:01:38]} Nd7 {[%emt 0:01:46]} 19. Bxg6 {[%emt 0:00:33]} fxg6 {[%emt 0:00:12]} 20. Nh4 {[%emt 0:00:27]} g5 {[%emt 0:01:19]} 21. Ng6 {[%emt 0:01:01]} Rf7 {[%emt 0:01:42]} 22. Qh5 {[%emt 0:07:10]} Nf8 {[%emt 0:02:31]} 23. Bxg5 {[%emt 0:02:32]} Nxg6 {[%emt 0:02:25]} 24. Qxg6 {[%emt 0:00:04]} hxg5 {[%emt 0:00:51]} 25. Qxe6 {[%emt 0:00:04]} Bxd4 {[%emt 0:00:52]} 26. Nf5 {[%emt 0:02:18]} Bb6 {[%emt 0:04:22]} 27. Qg6 {[%emt 0:01:24]} Bxf2+ {[%emt 0:14:56]} 28. Kxf2 {[%emt 0:00:18]} Rxf5+ {[%emt 0:00:11]} 1/2-1/2

[Event "FIDE Zonal 2.5 Open 2019"]
[Site "Montevideo"]
[Date "2019.04.16"]
[Round "5.2"]
[White "Henriquez Villagra, Cristobal"]
[Black "Pichot, Alan"]
[Result "1/2-1/2"]
[ECO "A78"]
[WhiteElo "2543"]
[BlackElo "2566"]
[Annotator "ChessBase"]
[PlyCount "71"]
[EventDate "2019.04.13"]
[EventType "swiss"]
[EventCountry "URU"]
[SourceTitle "playchess.com"]
[Source "ChessBase"]
[SourceQuality "1"]
[TimeControl "40/5400+30:1800+30"]

1. d4 {[%emt 0:08:14]} Nf6 {[%emt 0:03:14]} 2. c4 {[%emt 0:00:07]} e6 {[%emt 0:00:10]} 3. Nc3 {[%emt 0:00:12]} c5 {[%emt 0:02:53]} 4. d5 {[%emt 0:01:35]} exd5 {[%emt 0:00:05]} 5. cxd5 {[%emt 0:00:04]} d6 {[%emt 0:00:04]} 6. Nf3 {[%emt 0:04:28]} g6 {[%emt 0:00:08]} 7. e4 {[%emt 0:01:13]} Bg7 {[%emt 0:00:05]} 8. Nd2 {[%emt 0:00:32]} O-O {[%emt 0:02:49]} 9. Be2 {[%emt 0:00:12]} Re8 {[%emt 0:01:59]} 10. O-O {[%emt 0:00:33]} Na6 {[%emt 0:11:59]} 11. Re1 {[%emt 0:19:40]} Nc7 {[%emt 0:01:14]} 12. a4 {[%emt 0:00:38]} b6 {[%emt 0:03:23]} 13. Qc2 {[%emt 0:12:54]} Na6 {[%emt 0:05:57]} 14. h3 {[%emt 0:04:19]} Nb4 {[%emt 0:02:25]} 15. Qd1 {[%emt 0:00:15]} Nd7 {[%emt 0:08:00]} 16. Bb5 {[%emt 0:06:58]} Ne5 {[%emt 0:13:21]} 17. Bxe8 {[%emt 0:02:52]} Qxe8 {[%emt 0:00:05]} 18. Nb5 {[%emt 0:04:17]} Qd7 {[%emt 0:02:14]} 19. Nf3 {[%emt 0:03:40]} Nxf3+ {[%emt 0:07:05]} 20. Qxf3 {[%emt 0:01:57]} Nc2 {[%emt 0:02:10]} 21. Bf4 {[%emt 0:01:56]} Bxb2 {[%emt 0:05:20]} 22. Rab1 {[%emt 0:01:44]} Nxe1 {[%emt 0:00:07]} 23. Rxe1 {[%emt 0:00:05]} Ba6 {[%emt 0:07:27]} 24. Nxd6 {[%emt 0:00:25]} f6 {[%emt 0:00:52]} 25. Qg3 {[%emt 0:09:26]} Rd8 {[%emt 0:01:38]} 26. e5 {[%emt 0:05:06]} fxe5 {[%emt 0:03:08]} 27. Rxe5 {[%emt 0:00:04]} Rf8 {[%emt 0:04:13]} 28. Re4 {[%emt 0:03:15]} Bd4 {[%emt 0:01:43]} 29. Be3 {[%emt 0:03:19]} Bf6 {[%emt 0:00:53]} 30. Bh6 {[%emt 0:01:13]} Bg7 {[%emt 0:02:00]} 31. Bxg7 {[%emt 0:02:42]} Qxg7 {[%emt 0:00:01]} 32. Ne8 {[%emt 0:00:16]} Qf7 {[%emt 0:02:15]} 33. Qe5 {[%emt 0:01:17]} Qxf2+ {[%emt 0:04:42]} 34. Kh2 {[%emt 0:00:01]} Qf7 {[%emt 0:00:05]} 35. d6 {[%emt 0:00:37]} Bb7 {[%emt 0:00:24]} 36. Nf6+ {[%emt 0:01:20]} 1/2-1/2